fUSD/lending_fUSD_20240425
["ID","MTS","AMOUNT","RATE_DAILY","PERIOD"]
[323476613,1714032646314,-501.54135713,0.00012499,2]
[323476614,1714032646324,-345.63280796,0.00012499,2]
[323476616,1714032646333,-500.0,0.00012499,2]
[323476618,1714032646342,-500.0,0.00012499,2]
[323476620,1714032646352,-504.4,0.00012499,2]
[323476621,1714032646362,-503.90830767,0.00012499,2]
[323476622,1714032646371,-500.0,0.00012499,2]
[323476623,1714032646380,-500.0,0.00012499,2]
[323476625,1714032646389,-500.0,0.00012499,2]
[323476626,1714032646399,-500.0,0.00012499,2]
[323476627,1714032646408,-501.38517111,0.00012499,2]
[323476628,1714032646418,-501.68042887,0.00012499,2]
[323476629,1714032646429,-500.0,0.00012499,2]
[323476630,1714032646439,-500.0,0.00012499,2]
[323476631,1714032646449,-500.0,0.00012499,2]
[323476632,1714032646460,-506.21595808,0.00012499,2]
[323476633,1714032646469,-500.0,0.00012499,2]
[323476634,1714032646478,-500.0,0.00012499,2]
[323476635,1714032646488,-500.0,0.00012499,2]
[323476636,1714032646498,-512.28227857,0.00012499,2]
[323476637,1714032646508,-500.0,0.00012499,2]
[323476638,1714032646517,-501.6310825,0.00012499,2]
[323476639,1714032646528,-500.0,0.00012499,2]
[323476640,1714032646539,-500.0,0.00012499,2]
[323476641,1714032646548,-500.0,0.00012499,2]
[323476642,1714032646557,-500.0,0.00012499,2]
[323476643,1714032646566,-500.0,0.00012499,2]
[323476644,1714032646575,-500.0,0.00012499,2]
[323476645,1714032646586,-531.49,0.00012499,2]
[323476646,1714032646596,-500.0,0.00012499,2]
[323476647,1714032646606,-500.0,0.00012499,2]
[323476648,1714032646616,-558.26544498,0.00012499,2]
[323476649,1714032646626,-500.0,0.00012499,2]
[323476650,1714032646637,-490.58382946,0.00012499,2]
[323476651,1714032646647,-500.0,0.00012499,2]
[323476652,1714032646656,-500.0,0.00012499,2]
[323476653,1714032646665,-503.43845373,0.00012499,2]
[323476654,1714032646682,-518.54112473,0.00012499,2]
[323476655,1714032646696,-502.10341364,0.00012499,2]
[323476656,1714032646706,-500.0,0.00012499,2]
[323476657,1714032646715,-504.96672469,0.00012499,2]
[323476658,1714032646725,-500.0,0.00012499,2]
[323476659,1714032646734,-518.58730711,0.00012499,2]
[323476660,1714032646744,-200.0,0.00012499,2]
[323476661,1714032646753,-501.65040393,0.00012499,2]
[323476662,1714032646763,-311.35728817,0.00012499,2]
[323476663,1714032646773,-472.04503295,0.00012499,2]
[323476664,1714032646783,-507.45233783,0.00012499,2]
[323476665,1714032646792,-500.0,0.00012499,2]
[323476666,1714032646802,-521.27085793,0.00012499,2]
[323476667,1714032646812,-504.9478846,0.00012499,2]
[323476668,1714032646821,-503.65569498,0.00012499,2]
[323476669,1714032646831,-500.0,0.00012499,2]
[323476670,1714032646841,-500.0,0.00012499,2]
[323476671,1714032646851,-614.2751975,0.00012499,2]
[323476672,1714032646862,-500.0,0.00012499,2]
[323476673,1714032646872,-500.0,0.00012499,2]
[323476674,1714032646882,-500.0,0.00012499,2]
[323476675,1714032646892,-500.0,0.00012499,2]
[323476676,1714032646903,-381.09178789,0.00012499,2]
[323476677,1714032646913,-500.0,0.00012499,2]
[323476678,1714032646923,-500.0,0.00012499,2]
[323476679,1714032646934,-500.0,0.00012499,2]
[323476680,1714032646944,-571.85716188,0.00012499,2]
[323476681,1714032646955,-500.0,0.00012499,2]
[323476682,1714032646965,-599.4,0.00012499,2]
[323476683,1714032646975,-500.0,0.00012499,2]
[323476684,1714032646985,-500.0,0.00012499,2]
[323476685,1714032646994,-500.0,0.00012499,2]
[323476686,1714032647005,-500.0,0.00012499,2]
[323476687,1714032647015,-254.11691469,0.00012499,2]
[323476688,1714032647026,-500.0,0.00012499,2]
[323476689,1714032647037,-500.0,0.00012499,2]
[323476690,1714032647046,-181.8274801,0.00012499,2]
[323476691,1714032647056,-507.77210873,0.00012499,2]
[323476692,1714032647066,-558.00805095,0.00012499,2]
[323476693,1714032647078,-500.0,0.00012499,2]
[323476694,1714032647088,-527.27,0.00012499,2]
[323476695,1714032647098,-544.95,0.00012499,2]
[323476696,1714032647183,-500.0,0.00012499,2]
[323476697,1714032647193,-493.1130009,0.00012499,2]
[323476698,1714032647202,-500.0,0.00012499,2]
[323476699,1714032647212,-544.47,0.00012499,2]
[323476700,1714032647221,-617.07912279,0.00012499,2]
[323476701,1714032647231,-514.22887567,0.00012499,2]
[323476702,1714032647239,-241.11326682,0.00012499,2]
[323476703,1714032647249,-500.0,0.00012499,2]
[323476704,1714032647258,-500.0,0.00012499,2]
[323476705,1714032647267,-500.0,0.00012499,2]
[323476706,1714032647277,-500.0,0.00012499,2]
[323476707,1714032647286,-500.0,0.00012499,2]
[323476708,1714032647296,-350.28,0.00012499,2]
[323476709,1714032647305,-500.0,0.00012499,2]
[323476710,1714032647314,-607.91277987,0.00012499,2]
[323476711,1714032647323,-500.0,0.00012499,2]
[323476712,1714032647332,-500.0,0.00012499,2]
[323476713,1714032647341,-500.0,0.00012499,2]
[323476714,1714032647350,-500.0,0.00012499,2]
[323476715,1714032647359,-267.45,0.00012499,2]
[323476716,1714032647369,-500.0,0.00012499,2]
[323476717,1714032647378,-500.0,0.00012499,2]
[323476718,1714032647387,-500.0,0.00012499,2]
[323476719,1714032647396,-453.02911825,0.00012499,2]
[323476720,1714032647405,-500.0,0.00012499,2]
[323476721,1714032647414,-500.0,0.00012499,2]
[323476722,1714032647424,-500.0,0.00012499,2]
[323476723,1714032647433,-500.0,0.00012499,2]
[323476724,1714032647442,-507.63743612,0.00012499,2]
[323476725,1714032647451,-500.0,0.00012499,2]
[323476726,1714032647460,-500.0,0.00012499,2]
[323476727,1714032647469,-509.70872684,0.00012499,2]
[323476728,1714032647478,-500.0,0.00012499,2]
[323476729,1714032647487,-611.62,0.00012499,2]
[323476730,1714032647496,-512.98321452,0.00012499,2]
[323476731,1714032647506,-500.0,0.00012499,2]
[323476732,1714032647515,-209.27821791,0.00012499,2]
[323476733,1714032647523,-614.19385089,0.00012499,2]
[323476734,1714032647533,-500.0,0.00012499,2]
[323476735,1714032647542,-500.0,0.00012499,2]
[323476736,1714032647551,-500.0,0.00012499,2]
[323476737,1714032647560,-500.0,0.00012499,2]
[323476738,1714032647568,-500.0,0.00012499,2]
[323476739,1714032647577,-500.0,0.00012499,2]
[323476740,1714032647587,-500.0,0.00012499,2]
[323476741,1714032647595,-500.0,0.00012499,2]
[323476742,1714032647604,-537.7,0.00012499,2]
[323476743,1714032647614,-500.0,0.00012499,2]
[323476744,1714032647623,-500.0,0.00012499,2]
[323476745,1714032647632,-640.98933925,0.00012499,2]
[323476746,1714032647641,-500.0,0.00012499,2]
[323476747,1714032647650,-1059.46903226,0.00012499,3]
[323476748,1714032647659,-500.0,0.00012499,2]
[323476749,1714032647668,-500.0,0.00012499,2]
[323476750,1714032647677,-500.0,0.00012499,2]
[323476751,1714032647686,-500.0,0.00012499,2]
[323476752,1714032647696,-299.47078949,0.00012499,2]
[323476753,1714032647705,-151.0,0.00012499,2]
[323476754,1714032647714,-151.0,0.00012499,2]
[323476755,1714032647723,-2741310.1106235,0.000125,2]
[323476756,1714032647733,-44980.76068,0.000125,2]
[323476757,1714032648053,-500.0,0.00012498,2]
[323476758,1714032648063,-3596.56516886,0.000125,2]
[323476759,1714032648102,-33106.76037121,0.000125,2]
[323476760,1714032648113,-703.20536157,0.000125,2]
[323476761,1714032648132,-11298.37954926,0.000125,2]
[323476762,1714032648166,-19229.50000001,0.000125,2]
[323476763,1714032648525,-706.66913894,0.00011728,2]
[323476764,1714032648534,-3081.50969513,0.00011728,2]
[323476765,1714032648543,-187.2049432,0.00012393,2]
[323476766,1714032648553,-500.0,0.00012479,2]
[323476767,1714032648562,-1808.1582228,0.000125,2]
[323476768,1714032648574,-12813.4,0.000125,2]
[323476769,1714032648599,-4055.82535952,0.000125,2]
[323476770,1714032648610,-961.065,0.000125,2]
[323476771,1714032648660,-15921.01202256,0.000125,2]
[323476772,1714032648673,-496.13589952,0.000125,2]
[323476773,1714032648686,-2493.28109191,0.000125,2]
[323476774,1714032648694,-151.0,0.000125,2]
[323476775,1714032648704,-151.0,0.000125,2]
[323476776,1714032648713,-251.67117492,0.000125,2]
[323476777,1714032648722,-151.0,0.000125,2]
[323476778,1714032648733,-151.0,0.000125,2]
[323476779,1714032648743,-151.0,0.000125,2]
[323476780,1714032648751,-151.0,0.000125,2]
[323476781,1714032648761,-2108.07926416,0.000125,2]
[323476782,1714032649296,-187.20494319,0.00012397,2]
[323476783,1714032649306,-118.34708781,0.000124,2]
[323476784,1714032649318,-68.85785538,0.000124,2]
[323476785,1714032649327,-56.22507584,0.000125,2]
[323476786,1714032649338,-250.0,0.000125,2]
[323476787,1714032649346,-252.1,0.000125,2]
[323476788,1714032649356,-704.70960879,0.0001255,2]
[323476789,1714032649365,-302.98367599,0.00012582,2]
[323476790,1714032649403,-401.72593276,0.00012582,2]
[323476791,1714032649413,-704.70960875,0.00012614,2]
[323476792,1714032649423,-704.70960875,0.00012645,2]
[323476793,1714032649433,-10000.0,0.00012647,2]
[323476794,1714032649442,-580.45653966,0.0001265,2]
[323476795,1714032649452,-6482.03091663,0.00012673,2]
[323476796,1714032649859,-500.0,0.00012479,2]
[323476797,1714032649869,-500.0,0.00012497,2]
[323476798,1714032649879,-500.0,0.00012498,2]
[323476799,1714032649889,-568.5997416,0.00012673,2]
[323476800,1714032649904,-635.79838548,0.00012673,2]
[323476801,1714032649916,-1513.74150698,0.00012673,2]
[323476802,1714032649936,-521.33581393,0.00012479,2]
[323476803,1714032649947,-799.82944931,0.00012673,2]
[323476804,1714032649957,-704.70960875,0.00012677,2]
[323476805,1714032649967,-3050.14,0.00012683,2]
[323476806,1714032649977,-37702.0,0.00012696,2]
[323476807,1714032649986,-38077.34363907,0.00012697,2]
[323476808,1714032649996,-704.70960875,0.00012709,2]
[323476809,1714032650005,-704.70960875,0.00012741,2]
[323476810,1714032650015,-500.0,0.00012753,2]
[323476811,1714032650025,-500.0,0.00012753,2]
[323476812,1714032650038,-500.0,0.00012753,2]
[323476813,1714032650047,-515.67,0.00012753,2]
[323476814,1714032650057,-500.0,0.00012753,2]
[323476815,1714032650066,-500.0,0.00012753,2]
[323476816,1714032650077,-500.0,0.00012753,2]
[323476817,1714032650087,-500.0,0.00012753,2]
[323476818,1714032650096,-500.0,0.00012753,2]
[323476819,1714032650107,-2600.71,0.00012753,2]
[323476820,1714032650116,-500.0,0.00012753,2]
[323476821,1714032650126,-500.0,0.00012753,2]
[323476822,1714032650136,-724.03,0.00012753,2]
[323476823,1714032650145,-500.0,0.00012753,2]
[323476824,1714032650156,-2357.06,0.00012753,2]
[323476825,1714032650165,-500.0,0.00012753,2]
[323476826,1714032650175,-500.0,0.00012753,2]
[323476827,1714032650186,-581.51,0.00012753,2]
[323476828,1714032650195,-500.0,0.00012753,2]
[323476829,1714032650205,-500.0,0.00012753,2]
[323476830,1714032650215,-500.0,0.00012753,2]
[323476831,1714032650224,-1892.54,0.00012753,2]
[323476832,1714032650234,-500.0,0.00012753,2]
[323476833,1714032650243,-500.0,0.00012753,2]
[323476834,1714032650253,-1406.25,0.00012753,2]
[323476835,1714032650263,-2550.06,0.00012753,2]
[323476836,1714032650273,-500.0,0.00012753,2]
[323476837,1714032650282,-500.0,0.00012753,2]
[323476838,1714032650292,-500.0,0.00012753,2]
[323476839,1714032650301,-500.0,0.00012753,2]
[323476840,1714032650311,-500.0,0.00012753,2]
[323476841,1714032650320,-500.0,0.00012753,2]
[323476842,1714032650330,-500.0,0.00012753,2]
[323476843,1714032650340,-500.0,0.00012753,2]
[323476844,1714032650349,-500.0,0.00012753,2]
[323476845,1714032650359,-1280.89,0.00012753,2]
[323476846,1714032650369,-500.0,0.00012753,2]
[323476847,1714032650379,-500.0,0.00012753,2]
[323476848,1714032650389,-500.0,0.00012753,2]
[323476849,1714032650401,-500.0,0.00012753,2]
[323476850,1714032650411,-500.0,0.00012753,2]
[323476851,1714032650421,-1483.84124042,0.00012753,2]
[323476852,1714032650453,-962.83875958,0.00012753,2]
[323476853,1714032650462,-1002.22,0.00012753,2]
[323476854,1714032650471,-500.0,0.00012753,2]
[323476855,1714032650482,-500.0,0.00012753,2]
[323476856,1714032650491,-500.0,0.00012753,2]
[323476857,1714032650501,-8054.3,0.00012753,2]
[323476858,1714032650511,-500.0,0.00012753,2]
[323476859,1714032650520,-1012.48,0.00012753,2]
[323476860,1714032650530,-500.0,0.00012753,2]
[323476861,1714032650540,-500.0,0.00012753,2]
[323476862,1714032650550,-500.0,0.00012753,2]
[323476863,1714032650559,-1056.45,0.00012753,2]
[323476864,1714032650570,-500.0,0.00012753,2]
[323476865,1714032650580,-500.0,0.00012753,2]
[323476866,1714032650589,-500.0,0.00012753,2]
[323476867,1714032650599,-500.0,0.00012753,2]
[323476868,1714032650609,-876.91,0.00012753,2]
[323476869,1714032650619,-500.0,0.00012753,2]
[323476870,1714032650629,-500.0,0.00012753,2]
[323476871,1714032650639,-500.0,0.00012753,2]
[323476872,1714032650648,-500.0,0.00012753,2]
[323476873,1714032650659,-500.0,0.00012753,2]
[323476874,1714032650668,-500.0,0.00012753,2]
[323476875,1714032650677,-1490.56,0.00012753,2]
[323476876,1714032650687,-500.0,0.00012753,2]
[323476877,1714032650697,-500.0,0.00012771,2]
[323476878,1714032650707,-500.0,0.00012771,2]
[323476879,1714032650716,-500.0,0.00012771,2]
[323476880,1714032650726,-500.0,0.00012771,2]
[323476881,1714032650736,-517.7,0.00012771,2]
[323476882,1714032650745,-500.0,0.00012771,2]
[323476883,1714032650755,-500.0,0.00012771,2]
[323476884,1714032650765,-500.0,0.00012771,2]
[323476885,1714032650777,-500.0,0.00012771,2]
[323476886,1714032650786,-625.22,0.00012771,2]
[323476887,1714032650796,-500.0,0.00012771,2]
[323476888,1714032650806,-500.0,0.00012771,2]
[323476889,1714032650816,-500.0,0.00012771,2]
[323476890,1714032650825,-8514.86,0.00012771,2]
[323476891,1714032650835,-500.0,0.00012771,2]
[323476892,1714032650844,-500.0,0.00012771,2]
[323476893,1714032650854,-500.0,0.00012771,2]
[323476894,1714032650864,-500.0,0.00012771,2]
[323476895,1714032650873,-500.0,0.00012771,2]
[323476896,1714032650883,-272.57,0.00012771,2]
[323476897,1714032650892,-500.0,0.00012772,2]
[323476898,1714032650902,-335.72,0.00012772,2]
[323476899,1714032650912,-635.54,0.00012772,2]
[323476900,1714032650921,-500.0,0.00012772,2]
[323476901,1714032650931,-500.0,0.00012772,2]
[323476902,1714032650940,-361.64617789,0.00012772,2]
[323476903,1714032650949,-500.0,0.00012772,2]
[323476904,1714032650959,-568.30434612,0.00012772,2]
[323476905,1714032650969,-500.0,0.00012772,2]
[323476906,1714032650979,-500.0,0.00012772,2]
[323476907,1714032650988,-500.0,0.00012772,2]
[323476908,1714032650998,-500.0,0.00012772,2]
[323476909,1714032651008,-500.0,0.00012772,2]
[323476910,1714032651018,-500.0,0.00012772,2]
[323476911,1714032651028,-500.0,0.00012772,2]
[323476912,1714032651038,-325.05873351,0.00012772,2]
[323476913,1714032651048,-626.78626711,0.00012772,2]
[323476914,1714032651058,-500.0,0.00012772,2]
[323476915,1714032651068,-172.03,0.00012772,2]
[323476916,1714032651079,-1347.51,0.00012772,2]
[323476917,1714032651088,-1465.88,0.00012772,2]
[323476918,1714032651098,-500.0,0.00012772,2]
[323476919,1714032651110,-500.0,0.00012772,2]
[323476920,1714032651120,-187.10958207,0.00012772,2]
[323476921,1714032651129,-500.0,0.00012772,2]
[323476922,1714032651139,-208.59504903,0.00012772,2]
[323476923,1714032651149,-500.0,0.00012772,2]
[323476924,1714032651159,-500.0,0.00012772,2]
[323476925,1714032651169,-526.46777229,0.00012772,2]
[323476926,1714032651179,-531.85842798,0.00012772,2]
[323476927,1714032651189,-535.18490203,0.00012772,2]
[323476928,1714032651198,-500.0,0.00012772,2]
[323476929,1714032651209,-500.0,0.00012772,2]
[323476930,1714032651220,-541.61688362,0.00012772,2]
[323476931,1714032651230,-500.0,0.00012772,2]
[323476932,1714032651240,-500.0,0.00012772,2]
[323476933,1714032651249,-186.56,0.00012772,2]
[323476934,1714032651260,-467.95074857,0.00012772,2]
[323476935,1714032651270,-506.07076546,0.00012772,2]
[323476936,1714032651280,-544.35,0.00012772,2]
[323476937,1714032651290,-599.84,0.00012772,2]
[323476938,1714032651300,-406.31,0.00012772,2]
[323476939,1714032651310,-500.0,0.00012772,2]
[323476940,1714032651321,-500.0,0.00012772,2]
[323476941,1714032651330,-500.0,0.00012772,2]
[323476942,1714032651340,-295.31,0.00012772,2]
[323476943,1714032651350,-500.0,0.00012772,2]
[323476944,1714032651360,-500.0,0.00012772,2]
[323476945,1714032651370,-500.0,0.00012772,2]
[323476946,1714032651591,-1405.77,0.00012772,2]
[323476947,1714032651601,-500.0,0.00012772,2]
[323476948,1714032651611,-500.0,0.00012772,2]
[323476949,1714032651621,-500.0,0.00012772,2]
[323476950,1714032651631,-259.38,0.00012772,2]
[323476951,1714032651641,-515.03576389,0.00012772,2]
[323476952,1714032651650,-500.0,0.00012772,2]
[323476953,1714032651659,-502.66056429,0.00012772,2]
[323476954,1714032651668,-500.0,0.00012772,2]
[323476955,1714032651677,-500.0,0.00012772,2]
[323476956,1714032651687,-500.0,0.00012772,2]
[323476957,1714032651695,-389.41020977,0.00012772,2]
[323476958,1714032651704,-500.0,0.00012772,2]
[323476959,1714032651713,-153.02740691,0.00012772,2]
[323476960,1714032651722,-500.0,0.00012772,2]
[323476961,1714032651731,-500.0,0.00012772,2]
[323476962,1714032651740,-500.0,0.00012772,2]
[323476963,1714032651749,-500.0,0.00012772,2]
[323476964,1714032651758,-500.0,0.00012772,2]
[323476965,1714032651768,-500.0,0.00012772,2]
[323476966,1714032651776,-500.0,0.00012772,2]
[323476967,1714032651786,-644.76721752,0.00012772,2]
[323476968,1714032651795,-500.0,0.00012772,2]
[323476969,1714032651803,-483.32,0.00012772,2]
[323476970,1714032651813,-151.0,0.00012772,2]
[323476971,1714032651822,-500.0,0.00012772,2]
[323476972,1714032651831,-500.0,0.00012772,2]
[323476973,1714032651840,-500.0,0.00012772,2]
[323476974,1714032651850,-151.0,0.00012772,2]
[323476975,1714032651859,-500.0,0.00012772,2]
[323476976,1714032651868,-470.62074701,0.00012772,2]
[323476977,1714032651877,-530.47,0.00012772,2]
[323476978,1714032651888,-500.0,0.00012772,2]
[323476979,1714032651896,-500.0,0.00012772,2]
[323476980,1714032651906,-500.0,0.00012772,2]
[323476981,1714032651915,-500.0,0.00012772,2]
[323476982,1714032651925,-516.82904927,0.00012772,2]
[323476983,1714032651935,-500.0,0.00012772,2]
[323476984,1714032651946,-413.57,0.00012772,2]
[323476985,1714032651955,-858.17,0.00012772,2]
[323476986,1714032651965,-500.0,0.00012772,2]
[323476987,1714032651974,-500.0,0.00012772,2]
[323476988,1714032651983,-519.54234853,0.00012772,2]
[323476989,1714032651992,-500.0,0.00012772,2]
[323476990,1714032652001,-504.40552321,0.00012772,2]
[323476991,1714032652011,-537.89104314,0.00012772,2]
[323476992,1714032652021,-500.0,0.00012772,2]
[323476993,1714032652034,-611.87132588,0.00012772,2]
[323476994,1714032652045,-313.63868604,0.00012772,2]
[323476995,1714032652054,-500.0,0.00012772,2]
[323476996,1714032652063,-577.28,0.00012772,2]
[323476997,1714032652074,-500.0,0.00012772,2]
[323476998,1714032652085,-4937.75,0.00012772,2]
[323476999,1714032652094,-572.52,0.00012772,2]
[323477000,1714032652103,-500.0,0.00012772,2]
[323477001,1714032652113,-500.0,0.00012772,2]
[323477002,1714032652124,-500.0,0.00012772,2]
[323477003,1714032652133,-599.08,0.00012772,2]
[323477004,1714032652144,-536.68,0.00012772,2]
[323477005,1714032652153,-500.0,0.00012772,2]
[323477006,1714032652162,-500.0,0.00012772,2]
[323477007,1714032652172,-501.23893517,0.00012772,2]
[323477008,1714032652181,-500.0,0.00012772,2]
[323477009,1714032652190,-623.69,0.00012772,2]
[323477010,1714032652200,-460.49,0.00012772,2]
[323477011,1714032652209,-363.55,0.00012772,2]
[323477012,1714032652218,-507.92,0.00012772,2]
[323477013,1714032652228,-500.0,0.00012772,2]
[323477014,1714032652237,-3470.28,0.00012772,2]
[323477015,1714032652246,-226.11840665,0.00012772,2]
[323477016,1714032652255,-500.0,0.00012772,2]
[323477017,1714032652265,-257.68,0.00012772,2]
[323477018,1714032652274,-500.0,0.00012772,2]
[323477019,1714032652283,-500.0,0.00012772,2]
[323477020,1714032652292,-484.4,0.00012772,2]
[323477021,1714032652301,-500.0,0.00012772,2]
[323477022,1714032652310,-500.0,0.00012772,2]
[323477023,1714032652320,-500.0,0.00012772,2]
[323477024,1714032652330,-500.0,0.00012772,2]
[323477025,1714032652339,-244.51,0.00012772,2]
[323477026,1714032652349,-500.0,0.00012772,2]
[323477027,1714032652358,-614.6,0.00012772,2]
[323477028,1714032652367,-500.0,0.00012772,2]
[323477029,1714032652377,-166.87,0.00012772,2]
[323477030,1714032652386,-259.6893917,0.00012772,2]
[323477031,1714032652396,-500.0,0.00012772,2]
[323477032,1714032652407,-513.88115749,0.00012772,2]
[323477033,1714032652417,-500.0,0.00012772,2]
[323477034,1714032652427,-604.43,0.00012772,2]
[323477035,1714032652438,-609.59,0.00012772,2]
[323477036,1714032652447,-500.0,0.00012772,2]
[323477037,1714032652458,-500.0,0.00012772,2]
[323477038,1714032652469,-500.0,0.00012772,2]
[323477039,1714032652480,-158.23,0.00012772,2]
[323477040,1714032652490,-500.0,0.00012772,2]
[323477041,1714032652502,-704.70960875,0.00012773,2]
[323477042,1714032652511,-200.0,0.00012773,10]
[323477043,1714032652522,-334.41,0.00012773,2]
[323477044,1714032652531,-325.565,0.00012773,2]
[323477045,1714032652541,-500.0,0.00012773,2]
[323477046,1714032652551,-374.5,0.00012773,2]
[323477047,1714032652561,-500.0,0.00012773,2]
[323477048,1714032652570,-431.74,0.00012773,2]
[323477049,1714032652579,-325.15,0.00012773,2]
[323477050,1714032652589,-519.6,0.00012773,2]
[323477051,1714032652598,-500.0,0.00012773,2]
[323477052,1714032652607,-500.0,0.00012773,2]
[323477053,1714032652616,-154.13,0.00012773,2]
[323477054,1714032652625,-500.0,0.00012773,2]
[323477055,1714032652634,-500.0,0.00012773,2]
[323477056,1714032652644,-151.0,0.00012773,2]
[323477057,1714032652654,-151.0,0.00012773,2]
[323477058,1714032652663,-518.23590048,0.00012773,2]
[323477059,1714032652672,-507.36608894,0.00012773,2]
[323477060,1714032652681,-500.0,0.00012773,2]
[323477061,1714032652691,-1000.0,0.00012796,2]
[323477062,1714032652700,-704.70960875,0.00012805,2]
[323477063,1714032652710,-5000.0,0.00012824,2]
[323477064,1714032652721,-704.70960875,0.00012836,2]
[323477065,1714032652731,-2503.02,0.00012863,2]
[323477066,1714032652741,-704.70960875,0.00012868,2]
[323477067,1714032652750,-151.0,0.0001288,2]
[323477068,1714032652760,-151.0,0.0001288,2]
[323477069,1714032652769,-624.50448505,0.00012889,2]
[323477070,1714032652779,-246.8015353,0.00012889,2]
[323477071,1714032652789,-201.538973,0.00012889,2]
[323477072,1714032652799,-447.5887915,0.00012889,2]
[323477073,1714032652809,-1804.60968477,0.00012898,2]
[323477074,1714032652819,-199.44302625,0.00012898,2]
[323477075,1714032652829,-158.64631776,0.00012898,2]
[323477076,1714032652838,-156.16078149,0.00012898,2]
[323477077,1714032652847,-158.33454284,0.00012898,2]
[323477078,1714032652856,-156.15054111,0.00012898,2]
[323477079,1714032652866,-264.4235256,0.00012898,2]
[323477080,1714032652875,-1842.45284177,0.00012898,2]
[323477081,1714032652884,-365.99550971,0.00012898,2]
[323477082,1714032652894,-456.23594,0.00012898,2]
[323477083,1714032652904,-155.84531068,0.00012898,2]
[323477084,1714032652914,-312.30207939,0.00012898,2]
[323477085,1714032652923,-239.09763251,0.00012898,2]
[323477086,1714032652932,-3432.32697001,0.00012898,2]
[323477087,1714032652941,-353199.17297765,0.000129,5]
[323477088,1714032652950,-9020.69274205,0.000129,2]
[323477089,1714032652959,-704.70960875,0.000129,2]
[323477090,1714032652969,-53386.76550483,0.000129,5]
[323477091,1714032652978,-151.0,0.000129,2]
[323477092,1714032652988,-151.0,0.000129,2]
[323477093,1714032652998,-151.0,0.000129,2]
[323477094,1714032653007,-151.0,0.000129,2]
[323477095,1714032653016,-209.3939524,0.000129,2]
[323477096,1714032653025,-580.45653966,0.000129,2]
[323477097,1714032653037,-5000.0,0.00012903,2]
[323477098,1714032653046,-6156.0,0.00012969,2]
[323477099,1714032653055,-400.0,0.0001297,2]
[323477100,1714032653065,-170028.75029107,0.0001299,2]
[323477101,1714032653076,-2233.17059391,0.0001299,2]
[323477102,1714032653085,-151.0,0.0001299,2]
[323477103,1714032653094,-151.0,0.0001299,2]
[323477104,1714032653104,-151.0,0.0001299,2]
[323477105,1714032653113,-151.0,0.0001299,2]
[323477106,1714032653122,-313.942168,0.00012991,2]
[323477107,1714032653131,-381.0828008,0.00012991,2]
[323477108,1714032653141,-448.2234335,0.00012991,2]
[323477109,1714032653150,-515.3640663,0.00012991,2]
[323477110,1714032653161,-582.504699,0.00012991,2]
[323477111,1714032653170,-256.3662421,0.00012991,2]
[323477112,1714032653180,-311.1935111,0.00012991,2]
[323477113,1714032653189,-366.0207801,0.00012991,2]
[323477114,1714032653199,-420.8480491,0.00012991,2]
[323477115,1714032653208,-475.6753182,0.00012991,2]
[323477116,1714032653218,-569.352194,0.00012991,2]